fUSD/lending_fUSD_20260219
["ID","MTS","AMOUNT","RATE_DAILY","PERIOD"]
[405965041,1771464652435,-167.22,0.00016002,2]
[405965042,1771464652445,-268.5455265,0.0001603,2]
[405965043,1771464652454,-5005.0,0.00016048,2]
[405965044,1771464652464,-506.0,0.0001605,2]
[405965045,1771464652474,-260.4103811,0.00016062,2]
[405965046,1771464652484,-2129.0,0.00016163,2]
[405965047,1771464652493,-268.5455265,0.00016189,2]
[405965048,1771464652504,-211289.0,0.000162,2]
[405965049,1771464652515,-481.41,0.00016202,2]
[405965050,1771464652524,-167.22,0.00016251,2]
[405965051,1771464652534,-187.78006525,0.00016252,2]
[405965052,1771464652545,-775.47832561,0.00016254,2]
[405965053,1771464652555,-481.69102308,0.00016265,2]
[405965054,1771464652563,-2131.01888332,0.00016276,2]
[405965055,1771464652582,-2873.98111668,0.00016276,2]
[405965056,1771464652591,-56666.06364024,0.000163,2]
[405965057,1771464652601,-268.5455265,0.00016347,2]
[405965058,1771464652611,-481.41,0.00016403,2]
[405965059,1771464652621,-1910.9,0.00016438,2]
[405965060,1771464652630,-900.0,0.00016438,2]
[405965061,1771464652640,-227.84,0.00016438,2]
[405965062,1771464652650,-379.92,0.00016438,2]
[405965063,1771464652660,-151.0,0.00016438,2]
[405965064,1771464652670,-151.0,0.00016438,2]
[405965065,1771464652680,-151.0,0.00016438,2]
[405965066,1771464652689,-151.0,0.00016438,2]
[405965067,1771464652700,-151.0,0.00016438,2]
[405965068,1771464652710,-151.0,0.00016438,2]
[405965069,1771464652720,-151.0,0.00016438,2]
[405965070,1771464652732,-480.08512,0.00016438,2]
[405965071,1771464652741,-480.08512,0.00016438,2]
[405965072,1771464652750,-480.08512,0.00016438,2]
[405965073,1771464652760,-480.08512,0.00016438,2]
[405965074,1771464652771,-480.08512,0.00016438,2]
[405965075,1771464652780,-480.08512,0.00016438,2]
[405965076,1771464652790,-480.08512,0.00016438,2]
[405965077,1771464652799,-480.08512,0.00016438,2]
[405965078,1771464652809,-480.08512,0.00016438,2]
[405965079,1771464652818,-480.08512,0.00016438,2]
[405965080,1771464652828,-480.08512,0.00016438,2]
[405965081,1771464652837,-480.08512,0.00016438,2]
[405965082,1771464652847,-480.08512,0.00016438,2]
[405965083,1771464652857,-480.08512,0.00016438,2]
[405965084,1771464652866,-480.08512,0.00016438,2]
[405965085,1771464652875,-480.08512,0.00016438,2]
[405965086,1771464652884,-151.0,0.00016438,2]
[405965087,1771464652893,-151.0,0.00016438,2]
[405965088,1771464652902,-151.0,0.00016438,2]
[405965089,1771464652912,-151.0,0.00016438,2]
[405965090,1771464652921,-151.0,0.00016438,2]
[405965091,1771464652930,-151.0,0.00016438,2]
[405965092,1771464652939,-151.051476,0.00016438,2]
[405965093,1771464652949,-151.0,0.00016438,2]
[405965094,1771464652958,-151.0,0.00016438,2]
[405965095,1771464652967,-151.0,0.00016438,2]
[405965096,1771464652976,-151.0,0.00016438,2]
[405965097,1771464652985,-151.0,0.00016438,2]
[405965098,1771464652994,-151.0,0.00016438,2]
[405965099,1771464653003,-151.0,0.00016438,2]
[405965100,1771464653012,-151.0,0.00016438,2]
[405965101,1771464653022,-151.0,0.00016438,2]
[405965102,1771464653031,-151.0,0.00016438,2]
[405965103,1771464653040,-151.0,0.00016438,2]
[405965104,1771464653051,-151.0,0.00016438,2]
[405965105,1771464653060,-151.0,0.00016438,2]
[405965106,1771464653070,-151.0,0.00016438,2]
[405965107,1771464653079,-151.0,0.00016438,2]
[405965108,1771464653089,-151.0,0.00016438,2]
[405965109,1771464653098,-292.950774,0.00016438,2]
[405965110,1771464653108,-1000.0,0.00016438,2]
[405965111,1771464653117,-1389.52397032,0.00016458,2]
[405965112,1771464653147,-904.64662748,0.00016458,2]
[405965113,1771464653158,-2991.66798998,0.00016458,2]
[405965114,1771464653169,-602.16141222,0.00016458,2]
[405965115,1771464653179,-8578.0,0.00016481,2]
[405965116,1771464653188,-2097.65413846,0.00016494,2]
[405965117,1771464653210,-151.0,0.0001155,2]
[405965118,1771464653228,-2907.34586154,0.00016494,2]
[405965119,1771464653237,-160.0,0.000165,2]
[405965120,1771464653246,-5005.0,0.0001657,2]
[405965121,1771464653255,-481.40063025,0.00016605,2]
[405965122,1771464653265,-270.0455652,0.0001661,2]
[405965123,1771464653274,-481.69102308,0.00016662,2]
[405965124,1771464653283,-301.06514855,0.000167,2]
[405965125,1771464653292,-1000.0,0.00016712,2]
[405965126,1771464653302,-167.25,0.00016712,2]
[405965127,1771464653311,-5888.0,0.00016806,2]
[405965128,1771464653320,-151.0,0.00016806,2]
[405965129,1771464653329,-3852.93329581,0.00016871,2]
[405965130,1771464653342,-161.0,0.000169,2]
[405965131,1771464653352,-162.47,0.000169,2]
[405965132,1771464653362,-500.0,0.00016919,2]
[405965133,1771464653371,-534.87,0.00016919,2]
[405965134,1771464653381,-500.0,0.00016919,2]
[405965135,1771464653390,-168.0,0.00016934,2]
[405965136,1771464653399,-168.0,0.00016936,2]
[405965137,1771464653409,-168.0,0.00016972,2]
[405965138,1771464653420,-168.0,0.00016974,2]
[405965139,1771464653429,-1000.0,0.00016986,2]
[405965140,1771464653438,-500.0,0.00016999,2]
[405965141,1771464653447,-586.46,0.00016999,2]
[405965142,1771464653456,-500.0,0.00016999,2]
[405965143,1771464653466,-1698.39954331,0.00017,2]
[405965144,1771464653474,-500.0,0.00017,5]
[405965145,1771464653484,-500.0,0.00017,2]
[405965146,1771464653493,-354.93284396,0.00017,2]
[405965147,1771464653502,-300.0,0.00017,2]
[405965148,1771464653511,-5531.0,0.00017,3]
[405965149,1771464653522,-168.0,0.00017001,2]
[405965150,1771464653531,-168.0,0.0001701,2]
[405965151,1771464653541,-37237.52246235,0.00017024,2]
[405965152,1771464653550,-168.0,0.00017046,2]
[405965153,1771464653559,-506.0,0.00017049,2]
[405965154,1771464653568,-481.69102308,0.00017059,2]
[405965155,1771464653577,-300.0,0.00017099,2]
[405965156,1771464653586,-56666.06364024,0.000171,2]
[405965157,1771464653595,-168.0,0.000171,2]
[405965158,1771464653604,-350.0,0.00017118,2]
[405965159,1771464653613,-276.0,0.00017122,2]
[405965160,1771464653622,-168.0,0.00017143,2]
[405965161,1771464653632,-280.03725112,0.00017158,2]
[405965162,1771464653642,-168.0,0.00017222,2]
[405965163,1771464653651,-168.0,0.00017245,2]
[405965164,1771464653660,-168.0,0.00017251,2]
[405965165,1771464653670,-1000.0,0.0001726,2]
[405965166,1771464653680,-329.0,0.00017284,2]
[405965167,1771464653690,-350.0,0.00017308,2]
[405965168,1771464653700,-2836.0,0.0001736,2]
[405965169,1771464653713,-5888.0,0.00017373,2]
[405965170,1771464653722,-350.0,0.0001738,2]
[405965171,1771464653731,-1910.9,0.00017399,2]
[405965172,1771464653741,-357.67336026,0.00017435,2]
[405965173,1771464653903,-168.0,0.00017455,2]
[405965174,1771464653913,-481.69102308,0.00017456,2]
[405965175,1771464653923,-236.91331433,0.00017459,2]
[405965176,1771464653933,-150.0,0.0001752,2]
[405965177,1771464653942,-150.0,0.0001752,2]
[405965178,1771464653951,-150.0,0.0001752,2]
[405965179,1771464653960,-150.0,0.0001752,2]
[405965180,1771464653970,-150.0,0.0001752,2]
[405965181,1771464653979,-150.0,0.0001752,2]
[405965182,1771464653990,-150.0,0.0001752,2]
[405965183,1771464653999,-150.0,0.0001752,2]
[405965184,1771464654009,-150.0,0.0001752,2]
[405965185,1771464654018,-168.0,0.00017525,2]
[405965186,1771464654028,-168.0,0.00017528,2]
[405965187,1771464654038,-1000.0,0.00017534,2]
[405965188,1771464654047,-644.79446246,0.00017579,2]
[405965189,1771464654056,-350.0,0.00017598,2]
[405965190,1771464654066,-300.0,0.00017599,2]
[405965191,1771464654075,-194.72792766,0.00017621,2]
[405965192,1771464654085,-2192.87227633,0.0001764,2]
[405965193,1771464654094,-5888.0,0.00017692,2]
[405965194,1771464654103,-290.39862941,0.00017706,2]
[405965195,1771464654113,-350.0,0.00017709,2]
[405965196,1771464654122,-480.08512,0.00017712,2]
[405965197,1771464654131,-480.08512,0.00017712,2]
[405965198,1771464654141,-480.08512,0.00017712,2]
[405965199,1771464654150,-480.085127,0.00017712,2]
[405965200,1771464654160,-1902.0,0.00017778,2]
[405965201,1771464654169,-4909.56923748,0.000178,2]
[405965202,1771464654179,-300.0,0.00017807,2]
[405965203,1771464654188,-300.0,0.00017807,2]
[405965204,1771464654197,-500.0,0.00017808,2]
[405965205,1771464654206,-1000.0,0.00017808,2]
[405965206,1771464654216,-800.0,0.00017808,2]
[405965207,1771464654225,-481.69102308,0.00017852,2]
[405965208,1771464654234,-500.0,0.00017863,2]
[405965209,1771464654244,-500.0,0.00017899,2]
[405965210,1771464654253,-586.46,0.00017899,2]
[405965211,1771464654263,-500.0,0.00017899,2]
[405965212,1771464654273,-300.0,0.00017899,2]
[405965213,1771464654283,-300.0,0.00017899,2]
[405965214,1771464654292,-526.85563262,0.00017899,2]
[405965215,1771464654301,-1275.0,0.000179,2]
[405965216,1771464654311,-150.0,0.000179,2]
[405965217,1771464654320,-1209.0,0.000179,2]
[405965218,1771464654330,-1164.0,0.000179,2]
[405965219,1771464654343,-617.0,0.000179,2]
[405965220,1771464654353,-160.0,0.000179,2]
[405965221,1771464654362,-56666.06364024,0.000179,2]
[405965222,1771464654371,-620.77454887,0.000179,2]
[405965223,1771464654392,-150.0,0.000179,2]
[405965224,1771464654402,-3852.93329581,0.000179,2]
[405965225,1771464654412,-541.33958132,0.000179,2]
[405965226,1771464654422,-158.30449972,0.000179,2]
[405965227,1771464654431,-5531.0,0.000179,5]
[405965228,1771464654441,-301.06514855,0.000179,2]
[405965229,1771464654451,-2302.67381181,0.000179,2]
[405965230,1771464654461,-500.0,0.00017918,2]
[405965231,1771464654470,-1000.0,0.0001797,2]
[405965232,1771464654480,-1000.0,0.0001797,2]
[405965233,1771464654489,-400.0,0.0001797,2]
[405965234,1771464654500,-1196.91567174,0.0001797,2]
[405965235,1771464654510,-502.03769234,0.0001797,2]
[405965236,1771464654519,-500.0,0.00017972,2]
[405965237,1771464654529,-10878.0,0.00017973,2]
[405965238,1771464654539,-245.86778969,0.00017973,2]
[405965239,1771464654548,-168.63570163,0.00017973,2]
[405965240,1771464654558,-184.10682969,0.00017973,2]
[405965241,1771464654568,-503.24422827,0.00017973,2]
[405965242,1771464654578,-500.27840167,0.00017973,2]
[405965243,1771464654589,-502.89755561,0.00017973,2]
[405965244,1771464654599,-162.86870142,0.00017973,2]
[405965245,1771464654609,-165.19851393,0.00017973,2]
[405965246,1771464654621,-500.0,0.00017973,2]
[405965247,1771464654631,-500.0,0.00017973,2]
[405965248,1771464654640,-500.0,0.00017973,2]
[405965249,1771464654650,-500.72012125,0.00017973,2]
[405965250,1771464654660,-500.0,0.00017973,2]
[405965251,1771464654670,-166.81542431,0.00017973,2]
[405965252,1771464654679,-500.62181878,0.00017973,2]
[405965253,1771464654688,-307.50101286,0.00017973,2]
[405965254,1771464654699,-500.57231933,0.00017973,2]
[405965255,1771464654710,-500.0,0.00017973,2]
[405965256,1771464654721,-500.52893924,0.00017973,2]
[405965257,1771464654734,-500.0,0.00017973,2]
[405965258,1771464654744,-500.0,0.00017973,2]
[405965259,1771464654755,-500.0,0.00017973,2]
[405965260,1771464654764,-230.21037703,0.00017973,2]
[405965261,1771464654774,-500.0,0.00017973,2]
[405965262,1771464654783,-501.31380548,0.00017973,2]
[405965263,1771464654794,-500.23149847,0.00017973,2]
[405965264,1771464654804,-500.0,0.00017973,2]
[405965265,1771464654813,-500.0,0.00017973,2]
[405965266,1771464654823,-500.0,0.00017973,2]
[405965267,1771464654833,-167.36575315,0.00017973,2]
[405965268,1771464654844,-493.34018519,0.00017973,2]
[405965269,1771464654853,-164.42502813,0.00017973,2]
[405965270,1771464654862,-500.0,0.00017973,2]
[405965271,1771464654873,-500.0,0.00017973,2]
[405965272,1771464654884,-500.0,0.00017973,2]
[405965273,1771464654895,-502.44174125,0.00017973,2]
[405965274,1771464654905,-500.40576439,0.00017973,2]
[405965275,1771464654916,-730.88934631,0.0001799,2]
[405965276,1771464654932,-730.88934631,0.0001799,2]
[405965277,1771464654943,-300.0,0.00017998,2]
[405965278,1771464654955,-300.0,0.00017998,2]
[405965279,1771464654966,-500.0,0.00017999,2]
[405965280,1771464654978,-500.0,0.00017999,2]
[405965281,1771464654988,-500.0,0.00017999,2]
[405965282,1771464654999,-500.0,0.00017999,2]
[405965283,1771464655010,-500.0,0.00017999,2]
[405965284,1771464655022,-500.0,0.00017999,2]
[405965285,1771464655033,-228.80047002,0.00017999,2]
[405965286,1771464655044,-586.46,0.00017999,2]
[405965287,1771464655054,-586.46,0.00017999,2]
[405965288,1771464655065,-586.46,0.00017999,2]
[405965289,1771464655074,-586.46,0.00017999,2]
[405965290,1771464655083,-586.46,0.00017999,2]
[405965291,1771464655093,-586.46,0.00017999,2]
[405965292,1771464655103,-586.46,0.00017999,2]
[405965293,1771464655112,-586.46,0.00017999,2]
[405965294,1771464655125,-586.46,0.00017999,2]
[405965295,1771464655134,-586.46,0.00017999,2]
[405965296,1771464655143,-586.46,0.00017999,2]
[405965297,1771464655153,-586.46,0.00017999,2]
[405965298,1771464655163,-586.46,0.00017999,2]
[405965299,1771464655172,-586.46,0.00017999,2]
[405965300,1771464655181,-586.46,0.00017999,2]
[405965301,1771464655191,-586.46,0.00017999,2]
[405965302,1771464655200,-586.46,0.00017999,2]
[405965303,1771464655210,-586.46,0.00017999,2]
[405965304,1771464655219,-586.46,0.00017999,2]
[405965305,1771464655230,-586.46,0.00017999,2]
[405965306,1771464655241,-586.5553454,0.00017999,2]
[405965307,1771464655251,-656.0,0.00017999,2]
[405965308,1771464655262,-656.0,0.00017999,2]
[405965309,1771464655272,-656.0,0.00017999,2]
[405965310,1771464655282,-656.0,0.00017999,2]
[405965311,1771464655292,-656.0,0.00017999,2]
[405965312,1771464655301,-656.0,0.00017999,2]
[405965313,1771464655314,-656.0,0.00017999,2]
[405965314,1771464655323,-656.0,0.00017999,2]
[405965315,1771464655333,-656.0,0.00017999,2]
[405965316,1771464655347,-656.1,0.00017999,2]
[405965317,1771464655357,-500.0,0.00017999,2]
[405965318,1771464655368,-500.0,0.00017999,2]
[405965319,1771464655379,-500.0,0.00017999,2]
[405965320,1771464655390,-500.0,0.00017999,2]
[405965321,1771464655402,-635.95417002,0.00017999,2]
[405965322,1771464655414,-500.0,0.00017999,2]
[405965323,1771464655424,-500.0,0.00017999,2]
[405965324,1771464655436,-500.0,0.00017999,2]
[405965325,1771464655446,-500.0,0.00017999,2]
[405965326,1771464655459,-500.0,0.00017999,2]
[405965327,1771464655469,-620.1235705,0.00017999,2]
[405965328,1771464655479,-552.73,0.00017999,2]
[405965329,1771464655491,-552.73,0.00017999,2]
[405965330,1771464655501,-552.73,0.00017999,2]
[405965331,1771464655515,-552.73,0.00017999,2]
[405965332,1771464655527,-552.73,0.00017999,2]
[405965333,1771464655536,-552.73,0.00017999,2]
[405965334,1771464655546,-552.73,0.00017999,2]
[405965335,1771464655556,-552.73,0.00017999,2]
[405965336,1771464655567,-552.73,0.00017999,2]
[405965337,1771464655577,-552.78,0.00017999,2]
[405965338,1771464655586,-500.0,0.00017999,2]
[405965339,1771464655596,-500.0,0.00017999,2]
[405965340,1771464655606,-500.0,0.00017999,2]
[405965341,1771464655615,-500.0,0.00017999,2]
[405965342,1771464655625,-500.0,0.00017999,2]
[405965343,1771464655634,-500.0,0.00017999,2]
[405965344,1771464655643,-273.59473759,0.00017999,2]
[405965345,1771464655653,-500.0,0.00017999,2]
[405965346,1771464655662,-500.0,0.00017999,2]
[405965347,1771464655672,-500.0,0.00017999,2]
[405965348,1771464655682,-500.0,0.00017999,2]
[405965349,1771464655693,-500.0,0.00017999,2]
[405965350,1771464655705,-500.0,0.00017999,2]
[405965351,1771464655715,-500.0,0.00017999,2]
[405965352,1771464655725,-500.0,0.00017999,2]
[405965353,1771464655735,-500.0,0.00017999,2]
[405965354,1771464655744,-500.0,0.00017999,2]
[405965355,1771464655754,-500.0,0.00017999,2]
[405965356,1771464655764,-500.0,0.00017999,2]
[405965357,1771464655776,-500.0,0.00017999,2]
[405965358,1771464655785,-500.0,0.00017999,2]
[405965359,1771464655795,-500.0,0.00017999,2]
[405965360,1771464655804,-500.0,0.00017999,2]
[405965361,1771464655813,-500.0,0.00017999,2]
[405965362,1771464655822,-500.0,0.00017999,2]
[405965363,1771464655832,-574.4,0.00017999,2]
[405965364,1771464655841,-534.87,0.00017999,2]
[405965365,1771464655851,-534.87,0.00017999,2]
[405965366,1771464655861,-534.87,0.00017999,2]
[405965367,1771464655870,-534.87,0.00017999,2]
[405965368,1771464655880,-534.87,0.00017999,2]
[405965369,1771464655889,-534.87,0.00017999,2]
[405965370,1771464655898,-534.87,0.00017999,2]
[405965371,1771464655908,-534.87,0.00017999,2]
[405965372,1771464655917,-534.87,0.00017999,2]
[405965373,1771464655926,-534.87,0.00017999,2]
[405965374,1771464655936,-534.87,0.00017999,2]
[405965375,1771464655945,-534.87,0.00017999,2]
[405965376,1771464655955,-534.87,0.00017999,2]
[405965377,1771464655965,-534.87,0.00017999,2]
[405965378,1771464655975,-534.87,0.00017999,2]
[405965379,1771464655984,-534.87,0.00017999,2]
[405965380,1771464655994,-534.87,0.00017999,2]
[405965381,1771464656004,-534.87,0.00017999,2]
[405965382,1771464656013,-534.87,0.00017999,2]
[405965383,1771464656023,-534.87,0.00017999,2]
[405965384,1771464656033,-534.87,0.00017999,2]
[405965385,1771464656043,-534.87,0.00017999,2]
[405965386,1771464656053,-535.02,0.00017999,2]
[405965387,1771464656063,-500.0,0.00017999,2]
[405965388,1771464656072,-500.0,0.00017999,2]
[405965389,1771464656082,-500.0,0.00017999,2]
[405965390,1771464656101,-500.0,0.00017999,2]
[405965391,1771464656111,-500.0,0.00017999,2]
[405965392,1771464656121,-500.0,0.00017999,2]
[405965393,1771464656131,-500.0,0.00017999,2]
[405965394,1771464656141,-500.0,0.00017999,2]
[405965395,1771464656151,-207.5,0.00017999,2]
[405965396,1771464656160,-300.0,0.00017999,2]
[405965397,1771464656170,-300.0,0.00017999,2]
[405965398,1771464656180,-666.0,0.00017999,2]
[405965399,1771464656189,-319.90825596,0.00017999,2]
[405965400,1771464656198,-300.0,0.00017999,2]
[405965401,1771464656208,-666.0,0.00017999,2]
[405965402,1771464656217,-300.0,0.00017999,2]
[405965403,1771464656227,-300.0,0.00017999,2]
[405965404,1771464656236,-666.0,0.00017999,2]
[405965405,1771464656246,-332.19669926,0.00017999,2]
[405965406,1771464656256,-150.0,0.00017999,2]
[405965407,1771464656266,-150.0,0.00017999,2]
[405965408,1771464656276,-178.95205093,0.00017999,2]
[405965409,1771464656286,-160.0,0.00018,2]
[405965410,1771464656295,-219730.20694672,0.00018,2]
[405965411,1771464656346,-307.9435522,0.0001155,2]
[405965412,1771464656355,-165.80899438,0.00018,2]
[405965413,1771464656367,-12678.21375174,0.00018,2]
[405965414,1771464656381,-18500.26804169,0.00018,2]
[405965415,1771464656394,-446.19998433,0.00018,2]
[405965416,1771464656405,-9185.96227502,0.00018,2]
[405965418,1771464952999,150.0,0.00011233,120]
[405965456,1771465837697,-352.47179581,0.00010125,2]
[405965457,1771465837711,-151.6038538,0.00010197,2]
[405965458,1771465837724,-185.015,0.00010216,2]
[405965459,1771465837737,-1176.893,0.00010216,2]
[405965460,1771465837748,-160.56060642,0.00010224,2]
[405965461,1771465837761,-500.0,0.00010224,2]
[405965462,1771465837772,-500.0,0.00010224,2]
[405965463,1771465837785,-500.0,0.00010224,2]
[405965464,1771465837797,-500.0,0.00010224,2]
[405965466,1771465837808,-548.50563922,0.00010224,2]
[405965468,1771465837819,-500.0,0.00010224,2]
[405965470,1771465837833,-500.0,0.00010224,2]
[405965472,1771465837844,-500.0,0.00010224,2]
[405965473,1771465837855,-500.0,0.00010224,2]
[405965474,1771465837866,-166558.88759215,0.00010225,2]
[405965475,1771465837889,-500.0,0.00010225,2]
[405965476,1771465839580,-2290.38582166,0.00010225,2]
[405965477,1771465839593,-2277.0831524,0.00010225,2]
[405965478,1771465839693,-20920.2049636,0.00010225,2]
[405965479,1771465839717,-325.47403664,0.00010225,2]
[405965480,1771465839848,-2989788.03599665,0.00010225,2]
[405965481,1771465839957,-194600.92941953,0.00010225,2]
[405965482,1771465839972,-43333.92532894,0.00010225,2]
[405965483,1771465840010,-334.444557,0.00010225,2]
[405965487,1771465843201,-2112.68772881,0.00010225,2]
[405965488,1771465843222,-6023.04433623,0.00010225,2]
[405965489,1771465843238,-2357.61,0.00010225,2]
[405965490,1771465843252,-5642.70196642,0.00010225,2]
[405965492,1771465845408,-26147.87556425,0.00010225,2]
[405965493,1771465845513,-3936.51227442,0.00010225,2]
[405965494,1771465845530,-32850.1972613,0.00010225,2]
[405965495,1771465845542,-2500.0,0.00010225,2]
[405965496,1771465845555,-151.0,0.00010418,2]
[405965497,1771465845566,-151.0,0.00010418,2]
[405965498,1771465845577,-151.0,0.00010418,2]
[405965499,1771465845588,-151.0,0.00010418,2]
[405965500,1771465845599,-151.0,0.00010418,2]
[405965501,1771465845610,-151.0,0.00010418,2]
[405965502,1771465845622,-151.0,0.00010418,2]
[405965503,1771465845636,-151.0,0.00010418,2]
[405965504,1771465845648,-151.0,0.00010418,2]
[405965505,1771465845659,-500.0,0.00010418,2]
[405965506,1771465845670,-151.0,0.00010418,2]
[405965507,1771465845681,-500.0,0.00010418,2]
[405965508,1771465845693,-151.0,0.00010418,2]
[405965509,1771465845707,-500.0,0.00010418,2]
[405965510,1771465845719,-151.0,0.00010418,2]
[405965511,1771465845731,-500.0,0.00010418,2]
[405965512,1771465845743,-151.0,0.00010418,2]
[405965513,1771465845755,-500.0,0.00010418,2]
[405965514,1771465845766,-151.0,0.00010418,2]
[405965515,1771465845778,-500.0,0.00010418,2]
[405965517,1771465845791,-151.0,0.00010418,2]
[405965519,1771465845802,-500.0,0.00010418,2]
[405965521,1771465845814,-151.0,0.00010418,2]
[405965523,1771465845824,-500.0,0.00010418,2]
[405965525,1771465845835,-151.0,0.00010418,2]
[405965527,1771465845844,-500.0,0.00010418,2]
[405965529,1771465845853,-151.0,0.00010418,2]
[405965530,1771465845864,-500.0,0.00010418,2]
[405965531,1771465845873,-500.0,0.00010418,2]
[405965532,1771465845882,-500.0,0.00010418,2]
[405965533,1771465845891,-500.0,0.00010418,2]
[405965534,1771465845900,-151.0,0.00010418,2]
[405965535,1771465845910,-500.0,0.00010418,2]
[405965536,1771465845920,-151.0,0.00010418,2]
[405965537,1771465845929,-500.0,0.00010418,2]
[405965538,1771465845939,-500.0,0.00010418,2]
[405965539,1771465846304,-500.0,0.00010418,2]
[405965540,1771465846316,-500.0,0.00010418,2]
[405965541,1771465846327,-500.0,0.00010418,2]
[405965542,1771465846336,-500.0,0.00010418,2]
[405965543,1771465846346,-500.0,0.00010418,2]
[405965544,1771465846356,-500.0,0.00010418,2]
[405965545,1771465846365,-151.0,0.00010418,2]
[405965546,1771465846375,-151.0,0.00010418,2]
[405965547,1771465846384,-151.0,0.00010418,2]
[405965548,1771465846394,-151.0,0.00010418,2]
[405965549,1771465846403,-151.0,0.00010418,2]
[405965550,1771465846413,-151.0,0.00010418,2]
[405965551,1771465846422,-151.0,0.00010418,2]
[405965552,1771465846432,-151.0,0.00010418,2]
[405965553,1771465846441,-151.0,0.00010418,2]
[405965554,1771465846450,-151.0,0.00010418,2]
[405965555,1771465846463,-151.0,0.00010418,2]
[405965556,1771465846472,-183.78,0.00010538,2]
[405965557,1771465846481,-150.99,0.00010574,2]
[405965558,1771465846491,-9999.99,0.00010574,2]
[405965559,1771465846500,-500.0,0.00010752,2]
[405965560,1771465846509,-166.66,0.00011053,2]
[405965561,1771465846519,-202.80266978,0.00011098,2]
[405965562,1771465846537,-188.44512988,0.00011098,2]
[405965563,1771465846547,-197.54715965,0.00011098,2]
[405965564,1771465846556,-500.0,0.00011098,2]
[405965565,1771465846565,-500.0,0.00011098,2]
[405965566,1771465846574,-500.66702756,0.00011098,2]
[405965567,1771465846583,-500.0,0.00011098,2]
[405965568,1771465846593,-500.0,0.00011098,2]
[405965569,1771465846602,-500.0,0.00011098,2]
[405965570,1771465846612,-181.69233002,0.00011098,2]
[405965571,1771465846621,-263.56137069,0.00011099,2]
[405965572,1771465846630,-10385.94283773,0.00011099,2]
[405965573,1771465846641,-343.11611708,0.00011217,2]
[405965574,1771465846650,-150.0,0.00011233,2]
[405965575,1771465846659,-195.0,0.00011238,2]
[405965576,1771465846672,-300.0,0.00011238,2]
[405965577,1771465846681,-300.0,0.00011238,2]
[405965578,1771465846690,-300.0,0.00011238,2]
[405965579,1771465846699,-300.0,0.00011238,2]
[405965580,1771465846709,-251.32147191,0.00011238,2]
[405965581,1771465846721,-2500.0,0.00011238,2]
[405965582,1771465846731,-2500.0,0.00011238,2]
[405965583,1771465846740,-2500.0,0.00011238,2]
[405965584,1771465846750,-2500.0,0.00011238,2]
[405965585,1771465846760,-2500.0,0.00011238,2]
[405965586,1771465846769,-300.0,0.00011238,2]
[405965587,1771465846779,-300.0,0.00011238,2]
[405965588,1771465846791,-300.0,0.00011238,2]
[405965589,1771465846800,-300.0,0.00011238,2]
[405965590,1771465846810,-195.0,0.00011238,2]
[405965591,1771465846819,-195.0,0.00011238,2]
[405965592,1771465846829,-195.0,0.00011238,2]
[405965593,1771465846838,-195.0,0.00011238,2]